bitfinex/quotes_ETHUSD_20250806
["timestamp","ask_amount","ask_price","bid_price","bid_amount"]
[1754499370221,17.26197632,3653.4,3653.3,0.92760001]
[1754499370556,13.05397632,3653.4,3653.3,0.92760001]
[1754499370861,7.3168,3653.4,3653.3,0.92760001]
[1754499371162,3.1,3653.8,3653.3,0.92760001]
[1754499371163,0.1368,3653.5,3653.3,3.66485126]
[1754499371362,0.001,3653.8,3653.7,2.73695158]
[1754499372069,0.001,3653.8,3653.7,3.66455158]
[1754499373067,0.001,3653.8,3653.7,0.9276]
[1754499374956,0.001,3653.8,3653.7,1.0644]
[1754499375157,0.001,3653.8,3653.7,3.80135158]
[1754499375360,0.001,3653.8,3653.7,4.56419014]
[1754499375863,0.001,3653.8,3653.7,4.53682063]
[1754499376252,0.001,3653.8,3653.7,7.53682063]
[1754499377064,0.001,3653.8,3653.7,11.74382063]
[1754499377962,0.001,3653.8,3653.7,11.74282063]
[1754499378932,0.001,3653.8,3653.7,21.17380473]
[1754499381873,0.001,3653.8,3653.7,16.96780473]
[1754499382039,0.001,3653.8,3653.7,21.17280473]
[1754499382247,0.001,3653.8,3653.7,16.96780473]
[1754499382493,0.001,3653.8,3653.7,21.17280473]
[1754499382677,0.001,3653.8,3653.7,11.74182063]
[1754499387782,0.001,3653.8,3653.7,11.74082063]
[1754499387958,0.001,3653.8,3653.7,8.28982063]
[1754499389076,0.001,3653.8,3653.7,4.08582063]
[1754499389281,0.001,3653.8,3653.7,5.07626905]
[1754499389680,0.001,3653.8,3653.7,0.1368]
[1754499389998,0.9506,3653.8,3653.7,4.3408]
[1754499390201,0.9506,3653.8,3653.7,0.1368]
[1754499390399,0.9506,3653.8,3653.7,4.3408]
[1754499391172,0.001,3653.8,3653.7,7.07775158]
[1754499391572,0.001,3653.8,3653.7,7.56355158]
[1754499391973,0.001,3653.8,3653.7,4.8266]
[1754499392369,0.001,3653.8,3653.7,4.3408]
[1754499392576,0.4669,3653.8,3653.7,4.3408]
[1754499392878,0.4669,3653.8,3653.3,0.13680001]
[1754499392879,2.73716653,3653.5,3653.3,0.13680001]
[1754499393083,0.933,3653.4,3653.3,0.13680001]
[1754499393885,3.67017632,3653.4,3653.3,1e-08]
[1754499394272,4.31089789,3653.4,3653.3,1e-08]
[1754499394910,1.57372157,3653.4,3653.3,1e-08]
[1754499395205,0.4659,3653.4,3653.3,1e-08]
[1754499395971,3.20307632,3653.4,3653.3,1e-08]
[1754499396398,0.4659,3653.4,3653.3,1e-08]
[1754499396805,3.20307632,3653.4,3653.3,1e-08]
[1754499397209,0.4659,3653.4,3653.3,1e-08]
[1754499398106,3.20307632,3653.4,3653.3,1e-08]
[1754499398273,0.001,3653.8,3653.3,0.48580001]
[1754499398471,0.001,3653.8,3653.4,7.88552838]
[1754499398697,0.001,3653.8,3653.6,0.1368]
[1754499399501,0.001,3653.8,3653.7,0.4596]
[1754499400055,0.001,3653.8,3653.7,0.4858]
[1754499400401,0.001,3653.8,3653.7,3.68235158]
[1754499400575,0.001,3653.8,3653.7,4.7582728]
[1754499400977,0.001,3653.8,3653.7,4.2986728]
[1754499401211,0.001,3653.8,3653.7,1.56172122]
[1754499401414,0.001,3653.8,3653.7,4.2986728]
[1754499402323,0.001,3653.8,3653.7,4.7582728]
[1754499402500,0.001,3653.8,3653.7,8.9612728]
[1754499402922,0.001,3653.8,3653.7,8.5016728]
[1754499403706,0.001,3653.8,3653.7,8.9612728]
[1754499407092,0.001,3653.8,3653.7,8.0158728]
[1754499407493,0.001,3653.8,3653.7,8.5016728]
[1754499408693,0.001,3653.8,3653.7,8.0158728]
[1754499410193,0.001,3653.8,3653.7,4.203]
[1754499410506,0.001,3653.8,3653.7,6.93995158]
[1754499410893,0.001,3653.8,3653.7,4.203]
[1754499411226,0.4669,3653.8,3653.7,4.202]
[1754499411654,0.001,3653.8,3653.7,4.202]
[1754499412122,0.4669,3653.8,3653.7,4.202]
[1754499413714,0.934,3653.8,3653.7,4.202]
[1754499415233,0.4669,3653.8,3653.7,4.202]
[1754499417133,0.001,3653.8,3653.7,4.6878]
[1754499417441,0.001,3653.8,3653.7,7.42475158]
[1754499417638,0.001,3653.8,3653.7,9.05101093]
[1754499419628,0.001,3653.8,3653.7,12.05101093]
[1754499420802,0.001,3653.8,3653.7,7.84901093]
[1754499421031,0.001,3653.8,3653.7,12.05001093]
[1754499423044,0.001,3653.8,3653.7,2.87375158]
[1754499423344,0.001,3653.8,3653.7,4.3378]
[1754499423740,0.001,3653.8,3653.7,0.1368]
[1754499423741,0.9466,3653.8,3653.7,0.1368]
[1754499423941,0.9466,3653.8,3653.7,4.3368]
[1754499424238,0.9466,3653.8,3653.7,0.1368]
[1754499424441,0.9466,3653.8,3653.7,4.2]
[1754499424847,0.9466,3653.8,3653.6,4.3368]
[1754499425043,3.68255158,3653.7,3653.6,0.1368]
[1754499425244,2.73702649,3653.6,3653.3,1e-08]
[1754499425415,2.73717632,3653.4,3653.3,1e-08]
[1754499425831,3.68277632,3653.4,3653.3,1e-08]
[1754499426149,6.78277632,3653.4,3653.3,1e-08]
[1754499426359,7.7484366,3653.4,3653.3,1e-08]
[1754499427364,11.9484366,3653.4,3653.3,1e-08]
[1754499427959,19.1284366,3653.4,3653.3,1e-08]
[1754499428451,19.6784366,3653.4,3653.3,1e-08]
[1754499430275,14.9284366,3653.4,3653.3,1e-08]
[1754499430435,19.1284366,3653.4,3653.3,1e-08]
[1754499430958,16.0284366,3653.4,3653.3,1e-08]
[1754499432759,16.5784366,3653.4,3653.3,1e-08]
[1754499433345,19.6784366,3653.4,3653.3,1e-08]
[1754499433970,15.4784366,3653.4,3653.3,1e-08]
[1754499434268,19.6784366,3653.4,3653.3,1e-08]
[1754499434858,14.4557366,3653.4,3653.3,1e-08]
[1754499435073,17.21717632,3653.4,3653.3,1e-08]
[1754499435251,17.69007632,3653.4,3653.3,1e-08]
[1754499435569,17.21717632,3653.4,3653.3,1e-08]
[1754499435937,14.11717632,3653.4,3653.3,1e-08]
[1754499438658,11.38,3653.4,3653.3,0.49560001]
[1754499439052,7.18,3653.4,3653.3,0.93070001]
[1754499439674,6.93704763,3653.6,3653.3,0.49560001]
[1754499439974,4.2,3653.6,3653.4,0.4956]
[1754499441482,6.93708483,3653.6,3653.4,0.4956]
[1754499441785,4.2,3653.6,3653.5,0.4956]
[1754499442482,4.2,3653.6,3653.5,0.9307]
[1754499442672,6.93696249,3653.7,3653.5,0.4956]
[1754499442871,4.2,3653.7,3653.5,0.4956]
[1754499443072,4.2,3653.7,3653.6,0.4956]
[1754499443590,0.1378,3653.8,3653.6,0.4956]
[1754499443748,4.199,3653.7,3653.4,3.17223257]
[1754499443947,4.199,3653.7,3653.4,0.4351]
[1754499444485,6.93596074,3653.7,3653.5,0.4956]
[1754499444691,6.93596074,3653.7,3653.3,0.63240001]
[1754499444850,2.73703552,3653.6,3653.3,0.63240001]
[1754499445053,2.73703552,3653.6,3653.4,0.4956]
[1754499445384,6.93596472,3653.7,3653.4,0.4956]
[1754499446087,6.93596472,3653.7,3653.3,0.13680001]
[1754499446276,7.40886472,3653.7,3653.3,0.13680001]
[1754499446477,7.40886472,3653.7,3653.3,0.63240001]
[1754499447090,0.4729,3653.6,3653.3,0.13680001]
[1754499447292,0.1368,3653.5,3653.3,1e-08]
[1754499447473,2.73717632,3653.4,3653.3,1e-08]
[1754499447796,7.88177632,3653.4,3653.3,1e-08]
[1754499448858,8.43177632,3653.4,3653.3,1e-08]
[1754499449066,11.16043818,3653.4,3653.3,1e-08]
[1754499449267,14.16043818,3653.4,3653.3,1e-08]
[1754499449474,14.93324982,3653.4,3653.3,1e-08]
[1754499449891,18.03324982,3653.4,3653.3,1e-08]
[1754499451209,13.83424982,3653.4,3653.3,1e-08]
[1754499451486,16.92353818,3653.4,3653.3,1e-08]
[1754499451882,17.40763818,3653.4,3653.3,1e-08]
[1754499452294,16.45063818,3653.4,3653.3,1e-08]
[1754499452618,16.45163818,3653.4,3653.3,1e-08]
[1754499453389,16.92303818,3653.4,3653.3,1e-08]
[1754499454257,24.10303818,3653.4,3653.3,1e-08]
[1754499455664,23.63163818,3653.4,3653.3,1e-08]
[1754499456064,19.43263818,3653.4,3653.3,1e-08]
[1754499456366,17.34346186,3653.4,3653.3,1e-08]
[1754499456574,17.35197632,3653.4,3653.3,0.45070001]
[1754499456799,14.25197632,3653.4,3653.3,0.45070001]
[1754499457158,11.5148,3653.4,3653.3,0.45070001]
[1754499457982,14.25197632,3653.4,3653.3,0.45070001]
[1754499458278,10.05397632,3653.4,3653.3,0.45070001]
[1754499458480,14.25197632,3653.4,3653.3,0.45070001]
[1754499459599,11.5148,3653.4,3653.3,0.45070001]
[1754499460119,14.25197632,3653.4,3653.3,0.45070001]
[1754499460697,14.25297632,3653.4,3653.3,0.45070001]
[1754499460899,7.181,3653.4,3653.3,0.88830001]
[1754499461199,11.379,3653.4,3653.3,0.88830001]
[1754499461620,7.181,3653.4,3653.3,0.88830001]
[1754499461964,7.181,3653.4,3653.3,3.62555126]
[1754499463375,7.181,3653.4,3653.3,4.2799204]
[1754499463717,7.181,3653.4,3653.3,4.4167204]
[1754499464829,7.181,3653.4,3653.3,1.67946915]
[1754499464964,7.181,3653.4,3653.3,1.02510001]
[1754499465614,7.181,3653.4,3653.3,3.76235126]
[1754499467514,0.001,3653.4,3653.3,3.76235126]
[1754499467766,0.001,3653.4,3653.3,3.78972377]
[1754499467973,0.001,3653.4,3653.3,4.86653492]
[1754499469348,0.001,3653.4,3653.3,4.83916241]
[1754499474189,0.001,3653.4,3653.3,9.03516241]
[1754499485591,0.001,3653.4,3653.3,8.14686241]
[1754499485786,0.001,3653.4,3653.3,8.62906241]
[1754499486240,0.001,3653.4,3653.3,9.07926241]
[1754499486445,0.001,3653.8,3653.7,2.73695158]
[1754499486738,0.001,3654.2,3654.1,2.73665197]
[1754499486886,0.001,3654.5,3654.4,12.18577626]
[1754499487091,0.001,3654.5,3654.4,16.37977626]
[1754499487293,0.001,3654.5,3654.4,17.44897626]
[1754499490103,0.001,3654.5,3654.4,7.54942732]
[1754499490331,0.001,3654.5,3654.4,8.62623847]
[1754499490839,0.001,3654.5,3654.4,4.43223847]
[1754499491041,0.001,3654.5,3654.4,8.62523847]
[1754499491346,0.001,3654.5,3654.4,9.07543847]
[1754499491498,0.001,3654.5,3654.4,8.62523847]
[1754499497966,0.001,3654.5,3654.4,9.07543847]
[1754499498651,0.001,3654.5,3654.4,8.62523847]
[1754499503041,0.001,3654.5,3654.4,9.07543847]
[1754499503787,0.001,3654.5,3654.4,21.52478741]
[1754499509132,0.001,3654.5,3654.4,21.07458741]
[1754499509714,0.001,3654.5,3654.4,21.52478741]
[1754499510882,1e-08,3654.5,3654.4,21.52478741]
[1754499511284,1e-08,3654.6,3654.5,5.73635244]
[1754499511524,1e-08,3654.6,3654.5,6.98332863]
[1754499515521,1e-08,3655.0,3654.9,5.73605296]
[1754499515757,1e-08,3655.0,3654.9,19.3744019]
[1754499515958,1e-08,3655.0,3654.9,19.5112019]
[1754499516157,1e-08,3655.0,3654.9,21.53191305]
[1754499516688,1e-08,3655.0,3654.9,11.13866411]
[1754499516960,1e-08,3655.0,3654.9,21.06171305]
[1754499517123,1e-08,3655.0,3654.9,21.53191305]
[1754499517830,1e-08,3655.0,3654.9,21.06171305]
[1754499518660,1e-08,3655.0,3654.9,16.39901305]
[1754499518822,0.92960001,3655.0,3654.9,10.06085296]
[1754499520038,0.92960001,3655.0,3654.9,7.06085296]
[1754499522563,0.92960001,3655.0,3654.9,0.1368]
[1754499522744,0.92960001,3655.0,3654.1,3.0]
[1754499522966,0.9296,3654.9,3654.6,2.73626222]
[1754499523174,0.9296,3654.8,3654.5,0.1368]
[1754499523350,0.9296,3654.7,3654.3,0.1368]
[1754499523537,0.55,3654.5,3653.6,2.73698429]
[1754499523739,0.55,3654.2,3653.4,0.002]
[1754499523942,2.73699794,3653.7,3653.4,0.002]
[1754499524140,15.73645034,3653.5,3653.3,1e-08]
[1754499524352,3.28732617,3653.2,3653.1,0.042]
[1754499524660,6.38732617,3653.2,3653.1,0.042]
[1754499524836,8.52938268,3653.2,3653.1,0.042]
[1754499527583,5.24205651,3653.2,3653.1,0.042]
[1754499527733,7.97938268,3653.2,3653.1,0.042]
[1754499528169,5.24205651,3653.2,3653.1,0.042]
[1754499529365,7.97938268,3653.2,3653.1,0.042]
[1754499529566,8.52938268,3653.2,3653.1,0.042]
[1754499533537,11.66618268,3653.2,3653.1,0.042]
[1754499536772,12.38957765,3653.2,3653.1,0.042]
[1754499536971,17.84724771,3652.6,3651.2,0.1368]
[1754499537179,17.84724771,3652.6,3651.0,0.4737]
[1754499537180,22.03624771,3652.6,3651.0,0.6105]
[1754499537337,23.10264771,3652.6,3651.0,0.1368]
[1754499537537,6.28785078,3652.5,3652.4,1e-08]
[1754499537757,7.57164627,3652.5,3652.4,1e-08]
[1754499538073,10.30030813,3652.5,3652.4,1e-08]
[1754499538273,13.04611264,3652.5,3652.4,1e-08]
[1754499546610,17.23611264,3652.5,3652.4,1e-08]
[1754499549419,17.59030813,3652.5,3652.4,1e-08]
[1754499549793,20.47630813,3652.5,3652.4,1e-08]
[1754499550526,6.28800071,3652.3,3651.6,0.002]
[1754499550684,6.42525058,3651.7,3651.6,0.002]
[1754499550884,10.61525058,3651.7,3651.6,0.002]
[1754499551086,13.71525058,3651.7,3651.6,0.002]
[1754499551308,15.58743117,3651.7,3651.6,0.002]
[1754499551838,22.76743117,3651.7,3651.6,0.002]
[1754499552580,23.20303117,3651.7,3651.6,0.002]
[1754499552874,32.67105018,3651.7,3651.6,0.002]
[1754499554406,23.20303117,3651.7,3651.6,0.002]
[1754499554609,32.67105018,3651.7,3651.6,0.002]
[1754499555813,32.23545018,3651.7,3651.6,0.002]
[1754499561082,3.28882559,3651.2,3651.0,0.4918]
[1754499561283,17.54960183,3651.2,3651.0,0.4918]
[1754499561519,17.68640183,3651.2,3651.1,0.5318]
[1754499561679,20.78640183,3651.2,3651.1,0.5318]
[1754499563389,11.31838282,3651.2,3651.1,0.5318]
[1754499564228,11.31838282,3651.2,3651.1,0.994]
[1754499566327,11.31838282,3651.2,3651.1,0.5318]
[1754499566842,18.49838282,3651.2,3651.1,0.5318]
[1754499568039,18.49838282,3651.2,3651.1,0.5338]
[1754499575208,14.30838282,3651.2,3651.1,0.5338]
[1754499575406,17.89462559,3651.2,3651.1,1.0068]
[1754499580828,12.0558,3651.2,3651.1,1.0068]
[1754499581031,7.18,3651.2,3651.1,3.7457006]
[1754499581338,5.9071,3651.2,3651.1,4.40784868]
[1754499582048,5.73821125,3652.1,3651.1,4.40784868]
[1754499582049,0.1368,3651.6,3651.5,2.73860057]
[1754499582274,4.3258,3651.6,3651.5,2.73860057]
[1754499582576,4.3258,3651.6,3651.5,3.21160057]
[1754499582757,0.1368,3651.9,3651.6,2.73848887]
[1754499582961,4.189,3651.8,3651.7,0.473]
[1754499587481,10.0961,3651.8,3651.7,0.473]
[1754499587785,10.0961,3651.8,3651.3,0.1368]
[1754499587983,2.73873118,3651.4,3651.1,0.042]
[1754499588280,6.92675079,3651.3,3651.1,0.042]
[1754499588469,6.92675079,3651.3,3651.1,0.515]
[1754499588676,4.188,3651.3,3651.2,0.473]
[1754499593362,10.0951,3651.3,3651.2,0.473]
[1754499594800,10.5833,3651.3,3651.2,0.473]
[1754499595007,10.5833,3651.3,3651.1,0.042]
[1754499595379,4.188,3651.3,3651.1,0.042]
[1754499595581,4.3248,3651.3,3651.2,0.473]
[1754499597007,4.3248,3651.3,3651.1,0.042]
[1754499597008,7.55180664,3651.3,3651.1,0.042]
[1754499597307,3.22702559,3651.2,3651.1,0.042]
[1754499597531,3.67892559,3651.2,3651.1,0.042]
[1754499597822,4.22892559,3651.2,3651.1,0.042]
[1754499598307,7.22892559,3651.2,3651.1,0.042]
[1754499600596,7.95232056,3651.2,3651.1,0.042]
[1754499600911,10.31178294,3651.2,3651.1,0.042]
[1754499601274,14.14458745,3651.2,3651.1,0.042]
[1754499601776,20.05168745,3651.2,3651.1,0.042]
[1754499602104,23.15168745,3651.2,3651.1,0.042]
[1754499602667,23.87508242,3651.2,3651.1,0.042]
[1754499605376,22.21158745,3651.2,3651.1,0.042]
[1754499605576,22.11618745,3651.2,3651.1,0.042]
[1754499605800,18.47918745,3651.2,3651.1,0.042]
[1754499606020,9.0071,3651.2,3651.1,0.042]
[1754499606177,10.0941,3651.2,3651.1,0.042]
[1754499606377,0.1368,3651.3,3651.1,0.4761]
[1754499606577,4.187,3651.2,3651.1,0.042]
[1754499607174,4.187,3651.2,3651.1,0.4761]
[1754499608220,7.38042559,3651.2,3651.1,0.042]
[1754499608515,7.93042559,3651.2,3651.1,0.042]
[1754499608720,9.71231628,3651.2,3651.1,0.042]
[1754499609019,9.25601628,3651.2,3651.1,0.042]
[1754499609327,13.06651177,3651.2,3651.1,0.042]
[1754499609526,13.43571125,3651.2,3651.1,0.042]
[1754499609882,14.90041628,3651.2,3651.1,0.042]
[1754499610076,15.35501628,3651.2,3651.1,0.042]
[1754499610282,11.16901628,3651.2,3651.1,0.042]
[1754499610597,15.35501628,3651.2,3651.1,0.042]
[1754499612816,14.90041628,3651.2,3651.1,0.4761]
[1754499613120,4.3228,3651.2,3651.1,0.4761]
[1754499613413,4.3228,3651.2,3651.1,0.042]
[1754499613614,7.51622559,3651.2,3651.1,0.042]
[1754499613830,4.7774,3651.2,3651.1,0.042]
[1754499614233,4.3228,3651.2,3651.1,0.042]
[1754499614558,4.3228,3651.2,3651.1,0.4761]
[1754499619616,0.001,3651.8,3651.1,1.07151557]
[1754499619815,0.001,3651.8,3651.7,2.73845058]
[1754499620015,0.001,3651.8,3651.7,2.87525058]
[1754499620239,0.001,3651.8,3651.7,3.30935058]
[1754499620432,0.001,3651.8,3651.7,4.17030139]
[1754499620915,0.001,3651.8,3651.7,4.19768589]
[1754499621114,0.001,3651.8,3651.7,4.17030139]
[1754499622642,0.001,3651.8,3651.7,4.19768589]
[1754499623020,0.001,3652.0,3651.9,2.73830061]
[1754499623263,0.001,3652.0,3651.9,3.79693382]
[1754499623757,0.001,3652.0,3651.9,7.23103382]
[1754499623944,0.001,3652.0,3651.9,7.34045082]
[1754499624641,0.001,3652.0,3651.9,12.34827382]
[1754499625963,0.001,3652.9,3651.9,12.34827382]
[1754499626256,0.001,3652.9,3652.5,12.20586979]
[1754499626419,0.001,3652.9,3652.5,2.99400762]
[1754499626624,0.001,3652.8,3652.5,3.56490762]
[1754499626825,0.001,3652.8,3652.5,7.74890762]
[1754499627228,0.001,3652.8,3652.5,7.49275078]
[1754499627530,0.001,3652.8,3652.5,8.26784415]
[1754499629767,0.001,3652.8,3652.5,4.08384415]
[1754499630260,0.001,3652.8,3652.5,8.26684415]
[1754499632970,0.4805,3652.6,3652.5,7.83274415]
[1754499633466,0.4805,3652.6,3652.5,3.64974415]
[1754499633670,0.9104,3652.6,3652.3,2.7379349]
[1754499633967,0.4299,3652.5,3652.4,2.73787876]
[1754499634140,0.9094,3652.5,3652.4,2.73787876]
[1754499634556,0.9094,3652.5,3652.3,0.1368]
[1754499634761,0.4299,3652.5,3652.3,2.8747937]
[1754499635064,0.4795,3652.4,3652.3,2.87480071]
[1754499635274,0.4795,3652.4,3652.3,0.1368]
[1754499635458,0.4795,3652.4,3652.3,2.87480071]
[1754499636161,0.4795,3652.4,3652.3,0.1368]
[1754499636476,0.4795,3652.4,3652.2,7.05785484]
[1754499636636,0.9094,3652.4,3652.2,4.3198]
[1754499636833,0.4299,3652.3,3652.2,4.183]
[1754499637038,0.4299,3652.3,3652.1,2.73812625]
[1754499637274,0.4795,3652.2,3652.1,2.73812625]
[1754499638682,0.5677,3652.6,3652.5,2.73785078]
[1754499638683,0.1378,3652.6,3652.5,2.73785078]
[1754499638976,0.001,3652.6,3652.5,3.30365078]
[1754499639673,0.001,3652.6,3652.5,7.48565078]
[1754499639872,0.001,3652.6,3652.5,7.88591668]
[1754499641758,0.001,3652.6,3652.5,7.99560768]
[1754499642086,0.001,3652.6,3652.5,7.85880768]
[1754499642289,0.001,3652.6,3652.5,7.99560768]
[1754499643158,0.001,3652.7,3652.6,2.73777583]
[1754499643472,0.001,3652.8,3652.7,2.73770087]
[1754499643653,0.001,3652.8,3652.7,16.81671988]
[1754499644059,0.001,3653.0,3652.7,16.81671988]
[1754499644060,1e-08,3653.0,3652.9,5.73755098]
[1754499644278,1e-08,3653.3,3653.2,2.73732617]
[1754499644480,1e-08,3653.3,3653.2,16.38734518]
[1754499644682,1e-08,3653.3,3653.2,16.92441108]
[1754499644880,1e-08,3653.3,3653.2,17.46307408]
[1754499647390,1e-08,3653.3,3653.2,17.67172058]
[1754499647797,1e-08,3653.3,3653.2,4.02170157]
[1754499647983,0.47950001,3653.3,3653.2,3.38405507]
[1754499648171,0.47950001,3653.3,3653.2,7.45539207]
[1754499649595,0.47950001,3653.3,3653.2,3.27439207]
[1754499649758,0.47950001,3653.3,3653.2,7.45539207]
[1754499650590,1e-08,3653.3,3653.2,7.88439207]
[1754499651607,0.47950001,3653.3,3653.2,7.45539207]
[1754499653002,1e-08,3653.3,3653.2,7.45539207]
[1754499653480,0.47950001,3653.3,3653.2,7.45539207]
[1754499653995,1e-08,3653.3,3653.2,7.45539207]
[1754499654306,0.47950001,3653.3,3653.2,7.45539207]
[1754499654684,0.90940001,3653.3,3653.2,0.1368]
[1754499654884,0.90940001,3653.3,3653.2,4.3178]
[1754499655204,0.47950001,3653.3,3653.2,7.05512617]
[1754499659725,0.90940001,3653.3,3653.2,7.05512617]
[1754499660021,0.90940001,3653.3,3653.2,4.3168]
[1754499660501,1.27414286,3653.3,3652.8,0.002]
[1754499660701,0.9292,3653.2,3652.8,6.91960693]
[1754499661010,0.9292,3653.1,3652.8,4.182]
[1754499661427,0.9292,3653.0,3652.8,4.182]
[1754499661623,0.9292,3652.9,3652.8,4.182]
[1754499661843,0.9292,3652.9,3652.8,0.002]
[1754499662128,0.9292,3652.9,3652.8,6.91962593]
[1754499662987,0.9292,3652.9,3652.8,4.182]
[1754499664287,0.9292,3652.9,3652.8,6.91962593]
[1754499664714,0.9292,3652.9,3652.8,4.182]
[1754499666211,0.9292,3652.9,3652.8,0.002]
[1754499666413,4.04709862,3652.9,3652.8,0.2580385]
[1754499666906,4.18389862,3652.9,3652.8,0.25805249]
[1754499667107,4.54634764,3652.9,3652.8,0.25805249]
[1754499667733,1.44634764,3652.9,3652.8,0.25805249]
[1754499668309,1.066,3652.9,3652.8,0.25805249]
[1754499668913,3.80355098,3652.9,3652.8,0.25805249]
[1754499669113,1.066,3652.9,3652.8,0.25805249]
[1754499669794,3.80355098,3652.9,3652.8,0.25805249]
[1754499670304,1.066,3652.9,3652.8,0.002]
[1754499670505,0.97926783,3652.9,3652.8,0.002]
[1754499670736,0.4941,3652.9,3652.8,0.25818476]
[1754499671041,0.9292,3652.9,3652.8,0.25818476]
[1754499672920,0.9292,3652.9,3652.8,0.25814305]
[1754499673129,0.9292,3652.9,3652.8,0.002]
[1754499673438,0.9292,3652.9,3652.8,0.25811347]
[1754499673634,0.9292,3652.9,3652.8,0.002]
[1754499673841,0.4941,3652.9,3652.8,0.002]
[1754499674435,0.4941,3652.9,3652.8,0.25807736]
[1754499674740,0.4941,3652.9,3652.8,2.99570329]
[1754499674944,0.1368,3653.1,3652.9,2.73750146]
[1754499675100,0.1368,3653.1,3652.8,0.4428]
[1754499675301,0.4941,3653.0,3652.9,0.25607357]
[1754499676039,6.4012,3653.0,3652.9,2.99362455]
[1754499676240,1e-08,3653.3,3653.2,2.73732617]
[1754499676541,1e-08,3653.3,3653.2,2.87412617]
[1754499677042,1e-08,3653.3,3653.2,3.1301718]
[1754499677750,0.49410001,3653.3,3653.2,3.1301718]
[1754499678124,0.92920001,3653.3,3653.2,0.25604563]
[1754499678445,3.666502,3653.3,3652.8,2.73962519]
[1754499678643,0.9292,3653.2,3652.9,0.25613144]
[1754499678814,0.9292,3653.1,3653.0,0.25613144]
[1754499679012,1.066,3653.1,3652.8,0.002]
[1754499679213,0.9292,3653.0,3652.9,2.99367968]
[1754499679510,0.9292,3653.0,3652.9,0.25613378]
[1754499679710,3.28755098,3652.9,3652.8,0.002]
[1754499679909,3.28755098,3652.9,3652.4,0.002]
[1754499679910,2.73762593,3652.8,3652.4,0.002]
[1754499680144,0.1368,3652.6,3652.4,0.002]
[1754499680552,0.9292,3652.5,3652.4,0.002]
[1754499680927,0.4351,3652.5,3652.4,0.002]
[1754499681112,0.9292,3652.5,3652.4,0.002]
[1754499681758,4.04742908,3652.5,3652.4,0.002]
[1754499682514,11.77742908,3652.5,3652.4,0.002]
[1754499682718,3.28807568,3652.2,3652.1,0.002]
[1754499682946,9.52487568,3652.2,3652.1,0.002]
[1754499683153,12.50310529,3652.2,3652.1,0.002]
[1754499683316,3.28815065,3652.1,3652.0,0.002]
[1754499683515,6.28845058,3651.7,3650.7,0.002]
[1754499683755,10.60525058,3651.7,3650.7,0.002]
[1754499684250,11.53445058,3651.7,3651.3,0.002]
[1754499684450,13.23555468,3651.7,3651.3,0.002]
[1754499686532,16.33555468,3651.7,3651.3,0.002]
[1754499689450,4.3178,3651.7,3651.3,0.002]
[1754499689680,7.05625058,3651.7,3651.3,0.4428]
[1754499689877,7.55035058,3651.7,3651.3,0.002]
[1754499690192,4.8119,3651.7,3651.3,0.002]
[1754499690800,4.3178,3651.7,3651.4,0.4663]
[1754499692449,4.3178,3651.7,3651.5,2.73858998]
[1754499692654,3.1,3652.1,3651.3,2.74074235]
[1754499692655,4.181,3651.8,3651.6,0.4683]
[1754499692854,4.181,3651.8,3651.7,2.73840923]
[1754499693084,4.181,3651.8,3651.7,3.20470923]
[1754499693265,0.1368,3652.0,3651.8,2.73832692]
[1754499693466,0.1368,3652.0,3651.9,2.73830061]
[1754499693668,4.181,3652.1,3651.9,3.20460061]
[1754499693867,10.0881,3652.1,3651.9,3.20460061]
[1754499694688,10.0881,3652.1,3651.9,0.4663]
[1754499695692,10.5575,3652.1,3651.7,0.1368]
[1754499695898,0.4694,3652.0,3651.8,0.25567539]
[1754499696051,0.4694,3652.0,3651.7,0.1368]
[1754499697068,0.4694,3652.0,3651.7,2.87524892]
[1754499697271,10.0881,3652.1,3651.8,2.73836651]
[1754499697476,10.0881,3652.1,3651.8,3.20466651]
[1754499698078,10.0881,3652.1,3651.8,0.4663]
[1754499698318,10.0881,3652.1,3651.8,2.73836524]
[1754499698319,5.9071,3652.1,3651.8,2.73836524]
[1754499698478,5.9071,3652.1,3651.9,0.4663]
[1754499698479,10.0881,3652.1,3651.9,0.4663]
[1754499698799,10.0881,3652.1,3652.0,2.73822562]
[1754499698999,5.9071,3652.1,3652.0,3.20452562]
[1754499699591,5.9071,3652.1,3652.0,4.09926389]
[1754499699908,0.1368,3652.4,3652.3,2.73800071]
[1754499700071,4.181,3652.5,3652.3,2.73800071]
[1754499700268,4.181,3652.5,3652.4,0.4663]
[1754499700928,4.181,3652.5,3652.2,2.87486089]
[1754499701304,4.181,3652.5,3652.3,0.4663]
[1754499701818,3.79657862,3652.4,3651.8,2.7383146]
[1754499702041,0.1368,3652.2,3651.9,2.73829942]
[1754499702245,0.4694,3652.1,3651.9,2.73829942]
[1754499702527,0.1368,3652.2,3651.9,2.73829942]
[1754499702676,0.4694,3652.1,3651.8,2.73834153]
[1754499702882,0.4694,3652.0,3651.9,0.25575413]
[1754499703100,0.4694,3652.0,3651.7,2.87521439]
[1754499703306,2.87487691,3652.2,3651.8,0.25579613]
[1754499703519,0.4694,3651.9,3651.7,2.87521439]
[1754499703693,0.4694,3651.9,3651.8,0.25579316]
[1754499704615,0.4694,3651.9,3651.8,2.99416875]
[1754499704822,0.4694,3651.9,3651.8,0.25579316]
[1754499705716,1.0586,3651.9,3651.8,0.25579316]
[1754499705918,1.22338,3651.9,3651.6,0.002]
[1754499706236,3.66017559,3651.8,3651.7,0.25590393]
[1754499706700,3.66017559,3651.8,3651.6,0.002]
[1754499707020,0.4694,3651.7,3651.6,0.002]
[1754499707184,0.4694,3651.7,3651.6,0.25808375]
[1754499707526,3.66025058,3651.7,3651.6,0.25808375]